fUSD/lending_fUSD_20240318
["ID","MTS","AMOUNT","RATE_DAILY","PERIOD"]
[319413996,1710724238582,-758.30122566,0.00013836,2]
[319413997,1710724238592,-1244.87561995,0.0001384,2]
[319413998,1710724238604,-156.27486416,0.0001384,2]
[319413999,1710724238615,-157.23,0.0001384,2]
[319414000,1710724238625,-758.30122566,0.00013845,2]
[319414001,1710724238635,-156.27486416,0.00013846,2]
[319414002,1710724238646,-156.27486416,0.00013852,2]
[319414003,1710724238657,-758.30122566,0.00013855,2]
[319414004,1710724238667,-156.27486416,0.00013858,2]
[319414005,1710724238677,-758.30122566,0.00013864,2]
[319414006,1710724238687,-156.27486416,0.00013864,2]
[319414007,1710724238698,-1244.87561995,0.0001387,2]
[319414008,1710724238708,-156.27486416,0.0001387,2]
[319414009,1710724238719,-758.30122566,0.00013873,2]
[319414010,1710724238730,-156.27486416,0.00013876,2]
[319414011,1710724238740,-758.30122566,0.00013882,2]
[319414012,1710724238750,-156.27486416,0.00013882,2]
[319414013,1710724238761,-156.27486416,0.00013888,2]
[319414014,1710724238771,-20290.6918061,0.00013889,2]
[319414015,1710724238781,-20290.69180609,0.00013889,2]
[319414016,1710724238792,-20290.69180609,0.00013889,2]
[319414017,1710724238803,-20290.69180609,0.00013889,2]
[319414018,1710724238814,-20290.69180609,0.00013889,2]
[319414019,1710724238824,-20290.69180609,0.00013889,2]
[319414020,1710724238835,-20290.69180609,0.00013889,2]
[319414021,1710724238848,-20290.69180609,0.00013889,2]
[319414022,1710724238859,-20290.69180609,0.00013889,2]
[319414023,1710724238869,-758.30122566,0.00013891,2]
[319414024,1710724238880,-157.23,0.00013892,2]
[319414025,1710724238891,-800.0,0.00013892,2]
[319414026,1710724238901,-156.27486416,0.00013894,2]
[319414027,1710724238911,-373.93546042,0.00013898,2]
[319414028,1710724238921,-420.43040734,0.00013898,2]
[319414029,1710724238932,-347794.73685645,0.000139,2]
[319414030,1710724238942,-156.27486416,0.000139,2]
[319414031,1710724238953,-1106.41602626,0.000139,2]
[319414032,1710724238963,-1244.87561995,0.000139,2]
[319414033,1710724238974,-20290.69180609,0.000139,2]
[319414034,1710724238984,-170.3758682,0.000139,2]
[319414035,1710724238993,-758.30122566,0.000139,2]
[319414036,1710724239004,-390.74731302,0.000139,2]
[319414037,1710724239014,-378.38158242,0.000139,2]
[319414038,1710724239024,-811.4302664,0.000139,2]
[319414039,1710724239034,-11790.80350369,0.0001391,2]
[319414040,1710724239047,-11790.80350356,0.0001391,2]
[319414041,1710724239057,-11790.80350356,0.0001391,2]
[319414042,1710724239068,-11790.80350356,0.0001391,2]
[319414043,1710724239079,-11790.80350356,0.0001391,2]
[319414044,1710724239090,-11790.80350356,0.0001391,2]
[319414045,1710724239107,-11790.80350356,0.0001391,2]
[319414047,1710724239118,-11790.80350356,0.0001391,2]
[319414048,1710724239129,-11790.80350356,0.0001391,2]
[319414049,1710724239140,-11790.80350356,0.0001391,2]
[319414050,1710724239151,-11790.80350356,0.0001391,2]
[319414051,1710724239162,-11790.80350356,0.0001391,2]
[319414052,1710724239173,-11790.80350356,0.0001391,2]
[319414053,1710724239186,-11790.80350356,0.0001391,2]
[319414054,1710724239197,-11790.80350356,0.0001391,2]
[319414055,1710724239208,-11790.80350356,0.0001391,2]
[319414057,1710724239219,-11790.80350356,0.0001391,2]
[319414058,1710724239231,-11790.80350356,0.0001391,2]
[319414059,1710724239242,-11790.80350356,0.0001391,2]
[319414060,1710724239253,-11790.80350356,0.0001391,2]
[319414061,1710724239263,-157.23,0.00013943,2]
[319414062,1710724239275,-157.23,0.00013995,2]
[319414063,1710724239286,-1677756.80913024,0.00013999,2]
[319414064,1710724239298,-218.53914515,0.00014,3]
[319414065,1710724239308,-31885671.88896741,0.00014,2]
[319414066,1710724239745,-2431804.97231335,0.00014,2]
[319414067,1710724239756,-11319.23244133,0.00014,2]
[319414068,1710724239766,-69693.52135813,0.00014,2]
[319414069,1710724239775,-157.23,0.00014047,2]
[319414070,1710724239785,-157.23,0.00014098,2]
[319414071,1710724239794,-150.0,0.000141,2]
[319414072,1710724239804,-150.0,0.000141,2]
[319414073,1710724239814,-150.0,0.000141,2]
[319414074,1710724239823,-150.0,0.000141,2]
[319414075,1710724239833,-150.0,0.000141,2]
[319414076,1710724239843,-150.0,0.000141,2]
[319414077,1710724239856,-1854.8,0.000141,2]
[319414078,1710724239865,-693.56,0.000141,2]
[319414079,1710724239874,-300.0,0.000141,2]
[319414080,1710724239883,-300.0,0.000141,2]
[319414081,1710724239893,-157.23,0.0001415,2]
[319414082,1710724239902,-157.23,0.00014201,2]
[319414083,1710724239911,-200.0,0.00014359,2]
[319414084,1710724239920,-586.06,0.00014968,2]
[319414085,1710724239929,-5561.44,0.00014991,2]
[319414086,1710724239938,-5000.0,0.00015,2]
[319414087,1710724239947,-19368.35751359,0.00015,2]
[319414088,1710724239957,-187.2250813,0.00015,2]
[319414089,1710724239966,-190.07,0.00015068,2]
[319414090,1710724239975,-193.5,0.00015093,2]
[319414091,1710724239985,-1465.79299595,0.000152,2]
[319414092,1710724239994,-793.09828615,0.00015299,2]
[319414093,1710724240003,-600.0,0.00015302,2]
[319414094,1710724240012,-1000.0,0.0001535,2]
[319414095,1710724240021,-800.0,0.00015436,2]
[319414096,1710724240030,-3781.3603173,0.0001545,2]
[319414097,1710724240039,-1125.42115235,0.0001545,2]
[319414098,1710724240048,-3000.0,0.00015451,2]
[319414099,1710724240057,-12171.09961832,0.00015499,2]
[319414100,1710724240066,-1535.64339229,0.00015702,2]
[319414101,1710724240075,-1331.6497656,0.00015805,2]
[319414102,1710724240084,-200.0,0.00015955,2]
[319414103,1710724240093,-150.0,0.00015973,2]
[319414104,1710724240106,-232.187454,0.00016,2]
[319414105,1710724240115,-298.58434802,0.00016,2]
[319414106,1710724240125,-49453.6181546,0.00016,2]
[319414107,1710724240134,-160.1,0.00016303,2]
[319414108,1710724240144,-10811.989,0.00016351,2]
[319414109,1710724240154,-190.07,0.00016438,2]
[319414110,1710724240163,-7543.55,0.00016438,2]
[319414111,1710724240172,-1460.48,0.00016438,2]
[319414112,1710724240181,-1216.46329409,0.000165,2]
[319414113,1710724240191,-11067.63,0.00016727,2]
[319414114,1710724240200,-2500.0,0.00016767,2]
[319414115,1710724240212,-600.0,0.00016832,2]
[319414116,1710724240221,-2500.0,0.00016865,2]
[319414117,1710724240230,-800.0,0.0001698,2]
[319414118,1710724240240,-800.0,0.00017,3]
[319414119,1710724240249,-586.06,0.00017232,2]
[319414120,1710724240260,-154.12575019,0.00017275,2]
[319414121,1710724240269,-11061.504,0.000174,2]
[319414122,1710724240278,-778.0,0.000175,2]
[319414123,1710724240290,-150.80584847,0.00017523,2]
[319414124,1710724240299,-314.95171,0.00017534,2]
[319414125,1710724240309,-200.0,0.0001755,2]
[319414126,1710724240318,-4926.0,0.000176,2]
[319414127,1710724240328,-154.12575019,0.00017631,2]
[319414128,1710724240337,-5561.44,0.00017731,2]
[319414129,1710724240348,-330524.12693318,0.00017868,2]
[319414130,1710724240357,-3385091.96622872,0.0001788,2]
[319414131,1710724240366,-151.12768755,0.00017887,2]
[319414132,1710724240376,-9021.8190648,0.00017889,2]
[319414133,1710724240385,-164.0,0.00018109,2]
[319414134,1710724240393,-804.0,0.00018109,2]
[319414135,1710724240403,-155.0,0.00018109,2]
[319414136,1710724240413,-164.0,0.00018137,2]
[319414137,1710724240422,-804.0,0.00018137,2]
[319414138,1710724240432,-155.0,0.00018137,2]
[319414139,1710724240441,-164.0,0.00018164,2]
[319414140,1710724240451,-804.0,0.00018164,2]
[319414141,1710724240460,-155.0,0.00018164,2]
[319414142,1710724240470,-166.0,0.00018192,2]
[319414143,1710724240479,-804.0,0.00018192,2]
[319414144,1710724240488,-804.0,0.00018219,2]
[319414145,1710724240498,-804.0,0.00018246,2]
[319414146,1710724240507,-150.80584847,0.00018266,2]
[319414147,1710724240517,-804.0,0.00018274,2]
[319414148,1710724240527,-804.0,0.00018301,2]
[319414149,1710724240536,-804.0,0.00018329,2]
[319414150,1710724240545,-804.0,0.00018356,2]
[319414151,1710724240555,-6312.0,0.00018356,2]
[319414152,1710724240564,-6987.0,0.00018356,2]
[319414153,1710724240574,-314.95171,0.00018356,2]
[319414154,1710724240584,-600.0,0.00018363,2]
[319414155,1710724240593,-804.0,0.00018383,2]
[319414156,1710724240605,-804.0,0.00018411,2]
[319414157,1710724240615,-804.0,0.00018438,2]
[319414158,1710724240624,-804.0,0.00018466,2]
[319414159,1710724240633,-804.0,0.00018493,2]
[319414160,1710724240642,-406.10697296,0.000185,2]
[319414161,1710724240651,-135559.21080086,0.000185,2]
[319414162,1710724240661,-804.0,0.0001852,2]
[319414163,1710724240669,-800.0,0.00018523,2]
[319414164,1710724240679,-604.44216239,0.00018527,2]
[319414165,1710724240689,-1000.0,0.0001853,2]
[319414166,1710724240699,-804.0,0.00018548,2]
[319414167,1710724240709,-151.30766298,0.00018561,2]
[319414168,1710724240718,-804.0,0.00018575,2]
[319414169,1710724240728,-804.0,0.00018603,2]
[319414170,1710724240738,-500.0,0.0001863,2]
[319414171,1710724240747,-500.0,0.0001863,2]
[319414172,1710724240757,-500.0,0.0001863,2]
[319414173,1710724240766,-500.0,0.0001863,2]
[319414174,1710724240776,-1106.14425653,0.0001863,2]
[319414175,1710724240785,-439.52506834,0.0001863,2]
[319414176,1710724240794,-804.0,0.0001863,2]
[319414177,1710724240803,-498.77693836,0.0001863,2]
[319414178,1710724240812,-500.0,0.0001863,2]
[319414179,1710724240821,-500.0,0.0001863,2]
[319414180,1710724240830,-209.19,0.0001863,2]
[319414181,1710724240839,-500.0,0.0001863,2]
[319414182,1710724240849,-500.0,0.0001863,2]
[319414183,1710724240858,-500.0,0.0001863,2]
[319414184,1710724240867,-574.1,0.0001863,2]
[319414185,1710724240878,-324.51695269,0.0001863,2]
[319414186,1710724240887,-507.21362809,0.0001863,2]
[319414187,1710724240895,-411.89637713,0.0001863,2]
[319414188,1710724240904,-500.0,0.0001863,2]
[319414189,1710724240913,-500.0,0.0001863,2]
[319414190,1710724240923,-500.0,0.0001863,2]
[319414191,1710724240932,-196.82334561,0.0001863,2]
[319414192,1710724240941,-640.72,0.0001863,2]
[319414193,1710724240950,-500.0,0.0001863,2]
[319414194,1710724240959,-500.0,0.0001863,2]
[319414195,1710724240968,-500.0,0.0001863,2]
[319414196,1710724240977,-500.0,0.0001863,2]
[319414197,1710724240986,-151.63650603,0.0001863,2]
[319414198,1710724240994,-516.6487446,0.0001863,2]
[319414199,1710724241003,-500.0,0.0001863,2]
[319414200,1710724241012,-413.78701979,0.0001863,2]
[319414201,1710724241021,-500.0,0.0001863,2]
[319414202,1710724241030,-500.0,0.0001863,2]
[319414203,1710724241040,-500.0,0.0001863,2]
[319414204,1710724241048,-500.0,0.0001863,2]
[319414205,1710724241056,-500.0,0.0001863,2]
[319414206,1710724241065,-500.0,0.0001863,2]
[319414207,1710724241074,-500.0,0.0001863,2]
[319414208,1710724241083,-500.0,0.0001863,2]
[319414209,1710724241093,-500.0,0.0001863,2]
[319414210,1710724241105,-500.0,0.0001863,2]
[319414211,1710724241114,-500.0,0.0001863,2]
[319414212,1710724241124,-264.69649386,0.0001863,2]
[319414213,1710724241133,-500.0,0.0001863,2]
[319414214,1710724241142,-500.0,0.0001863,2]
[319414215,1710724241152,-515.02128904,0.0001863,2]
[319414216,1710724241161,-500.0,0.0001863,2]
[319414217,1710724241172,-500.0,0.0001863,2]
[319414218,1710724241182,-500.0,0.0001863,2]
[319414219,1710724241191,-500.0,0.0001863,2]
[319414220,1710724241201,-500.0,0.0001863,2]
[319414221,1710724241213,-500.0,0.0001863,2]
[319414222,1710724241223,-500.0,0.0001863,2]
[319414223,1710724241233,-500.0,0.0001863,2]
[319414224,1710724241243,-500.0,0.0001863,2]
[319414225,1710724241252,-500.0,0.0001863,2]
[319414226,1710724241262,-533.09710608,0.0001863,2]
[319414227,1710724241272,-500.0,0.0001863,2]
[319414228,1710724241282,-500.0,0.0001863,2]
[319414229,1710724241293,-500.0,0.0001863,2]
[319414230,1710724241302,-500.0,0.0001863,2]
[319414231,1710724241311,-500.0,0.0001863,2]
[319414232,1710724241321,-500.0,0.0001863,2]
[319414233,1710724241330,-153.50587511,0.0001863,2]
[319414234,1710724241340,-500.0,0.0001863,2]
[319414235,1710724241350,-500.0,0.0001863,2]
[319414236,1710724241360,-500.0,0.0001863,2]
[319414237,1710724241370,-500.0,0.0001863,2]
[319414238,1710724241379,-500.0,0.0001863,2]
[319414239,1710724241388,-500.0,0.0001863,2]
[319414240,1710724241398,-515.11479861,0.0001863,2]
[319414241,1710724241407,-350.58381962,0.0001863,2]
[319414242,1710724241417,-290.1,0.0001863,2]
[319414243,1710724241426,-500.0,0.0001863,2]
[319414244,1710724241436,-239.67432097,0.0001863,2]
[319414245,1710724241445,-284.00953083,0.0001863,2]
[319414246,1710724241454,-1021.84,0.0001863,2]
[319414247,1710724241464,-1021.84,0.0001863,2]
[319414248,1710724241473,-1021.84,0.0001863,2]
[319414249,1710724241483,-1021.84,0.0001863,2]
[319414250,1710724241492,-1021.84,0.0001863,2]
[319414251,1710724241502,-1021.84,0.0001863,2]
[319414252,1710724241511,-1021.84,0.0001863,2]
[319414253,1710724241520,-1021.84,0.0001863,2]
[319414254,1710724241529,-1021.84,0.0001863,2]
[319414255,1710724241539,-1021.84,0.0001863,2]
[319414256,1710724241549,-1021.84,0.0001863,2]
[319414257,1710724241559,-500.0,0.0001863,2]
[319414258,1710724241568,-1021.84,0.0001863,2]
[319414259,1710724241578,-500.0,0.0001863,2]
[319414260,1710724241587,-1021.84,0.0001863,2]
[319414261,1710724241597,-500.0,0.0001863,2]
[319414262,1710724241607,-500.0,0.0001863,2]
[319414263,1710724241617,-500.0,0.0001863,2]
[319414264,1710724241626,-500.0,0.0001863,2]
[319414265,1710724241635,-500.0,0.0001863,2]
[319414266,1710724241644,-500.0,0.0001863,2]
[319414267,1710724241654,-500.0,0.0001863,2]
[319414268,1710724241663,-500.0,0.0001863,2]
[319414269,1710724241672,-637.17100926,0.0001863,2]
[319414270,1710724241682,-500.0,0.0001863,2]
[319414272,1710724241691,-500.0,0.0001863,2]
[319414273,1710724241700,-500.0,0.0001863,2]
[319414274,1710724241709,-500.0,0.0001863,2]
[319414275,1710724241718,-500.0,0.0001863,2]
[319414276,1710724241726,-500.0,0.0001863,2]
[319414277,1710724241735,-500.0,0.0001863,2]
[319414278,1710724241744,-576.92317578,0.0001863,2]
[319414280,1710724241753,-1176.71,0.0001863,2]
[319414283,1710724241762,-1176.71,0.0001863,2]
[319414284,1710724241771,-1176.71,0.0001863,2]
[319414285,1710724241780,-1176.71,0.0001863,2]
[319414286,1710724241790,-1176.71,0.0001863,2]
[319414287,1710724241799,-1176.71,0.0001863,2]
[319414288,1710724241808,-1176.71,0.0001863,2]
[319414290,1710724241817,-1176.71,0.0001863,2]
[319414291,1710724241826,-1176.71,0.0001863,2]
[319414292,1710724241835,-1176.71,0.0001863,2]
[319414293,1710724241845,-1176.71,0.0001863,2]
[319414294,1710724241855,-1176.71,0.0001863,2]
[319414295,1710724241865,-1176.71,0.0001863,2]
[319414296,1710724241875,-1176.71,0.0001863,2]
[319414297,1710724241884,-1176.71,0.0001863,2]
[319414298,1710724241894,-1176.71,0.0001863,2]
[319414299,1710724241903,-1176.71,0.0001863,2]
[319414300,1710724241912,-1176.71,0.0001863,2]
[319414301,1710724241922,-1176.71,0.0001863,2]
[319414302,1710724241931,-1176.71,0.0001863,2]
[319414303,1710724241940,-500.0,0.0001863,2]
[319414304,1710724241950,-1176.71,0.0001863,2]
[319414305,1710724241960,-1176.71,0.0001863,2]
[319414306,1710724241969,-1176.71,0.0001863,2]
[319414307,1710724241979,-1176.94379994,0.0001863,2]
[319414308,1710724241988,-500.0,0.0001863,2]
[319414309,1710724241998,-500.0,0.0001863,2]
[319414310,1710724242007,-500.0,0.0001863,2]
[319414311,1710724242017,-500.0,0.0001863,2]
[319414312,1710724242026,-500.0,0.0001863,2]
[319414313,1710724242035,-500.0,0.0001863,2]
[319414314,1710724242044,-500.0,0.0001863,2]
[319414315,1710724242053,-500.0,0.0001863,2]
[319414316,1710724242062,-500.0,0.0001863,2]
[319414317,1710724242071,-500.0,0.0001863,2]
[319414318,1710724242080,-500.0,0.0001863,2]
[319414319,1710724242089,-500.0,0.0001863,2]
[319414320,1710724242100,-500.0,0.0001863,2]
[319414322,1710724242109,-500.0,0.0001863,2]
[319414324,1710724242118,-500.0,0.0001863,2]
[319414325,1710724242127,-500.0,0.0001863,2]
[319414327,1710724242137,-500.0,0.0001863,2]
[319414328,1710724242146,-500.0,0.0001863,2]
[319414329,1710724242155,-500.0,0.0001863,2]
[319414330,1710724242165,-219.44300106,0.0001863,2]
[319414331,1710724242174,-500.0,0.0001863,2]
[319414332,1710724242183,-500.0,0.0001863,2]
[319414333,1710724242194,-500.0,0.0001863,2]
[319414334,1710724242203,-500.0,0.0001863,2]
[319414336,1710724242212,-500.0,0.0001863,2]
[319414337,1710724242222,-500.0,0.0001863,2]
[319414339,1710724242233,-291.66042874,0.0001863,2]
[319414340,1710724242242,-500.0,0.0001863,2]
[319414341,1710724242252,-500.0,0.0001863,2]
[319414342,1710724242261,-500.0,0.0001863,2]
[319414343,1710724242271,-500.0,0.0001863,2]
[319414344,1710724242281,-500.0,0.0001863,2]
[319414345,1710724242292,-500.0,0.0001863,2]
[319414346,1710724242302,-500.0,0.0001863,2]
[319414347,1710724242311,-500.0,0.0001863,2]
[319414348,1710724242320,-500.0,0.0001863,2]
[319414349,1710724242330,-500.0,0.0001863,2]
[319414350,1710724242339,-500.0,0.0001863,2]
[319414351,1710724242349,-500.0,0.0001863,2]
[319414352,1710724242358,-562.87984136,0.0001863,2]
[319414353,1710724242367,-500.0,0.0001863,2]
[319414354,1710724242377,-355.82062932,0.0001863,2]
[319414355,1710724242386,-500.0,0.0001863,2]
[319414356,1710724242396,-357.26499999,0.0001863,2]
[319414357,1710724242405,-406.11140017,0.0001863,2]
[319414358,1710724242415,-500.0,0.0001863,2]
[319414359,1710724242424,-500.0,0.0001863,2]
[319414360,1710724242433,-500.0,0.0001863,2]
[319414361,1710724242443,-500.0,0.0001863,2]
[319414362,1710724242453,-500.0,0.0001863,2]
[319414363,1710724242462,-500.0,0.0001863,2]
[319414365,1710724242471,-500.0,0.0001863,2]
[319414367,1710724242480,-500.0,0.0001863,2]
[319414368,1710724242489,-647.3,0.0001863,2]
[319414369,1710724242499,-500.0,0.0001863,2]
[319414370,1710724242508,-500.0,0.0001863,2]
[319414371,1710724242517,-500.0,0.0001863,2]
[319414372,1710724242527,-500.0,0.0001863,2]
[319414373,1710724242537,-500.0,0.0001863,2]
[319414374,1710724242546,-500.0,0.0001863,2]
[319414375,1710724242555,-500.0,0.0001863,2]
[319414376,1710724242564,-500.0,0.0001863,2]
[319414377,1710724242573,-500.0,0.0001863,2]
[319414378,1710724242583,-500.0,0.0001863,2]
[319414379,1710724242591,-498.69272651,0.0001863,2]
[319414380,1710724242602,-500.0,0.0001863,2]
[319414381,1710724242611,-500.0,0.0001863,2]
[319414382,1710724242620,-500.0,0.0001863,2]
[319414383,1710724242629,-500.0,0.0001863,2]
[319414384,1710724242746,-500.0,0.0001863,2]
[319414385,1710724242779,-500.0,0.0001863,2]
[319414386,1710724242789,-500.0,0.0001863,2]
[319414387,1710724242798,-500.0,0.0001863,2]
[319414388,1710724242807,-500.0,0.0001863,2]
[319414389,1710724242816,-500.0,0.0001863,2]
[319414390,1710724242826,-500.0,0.0001863,2]
[319414391,1710724242835,-500.0,0.0001863,2]
[319414392,1710724242844,-500.0,0.0001863,2]
[319414393,1710724242855,-500.0,0.0001863,2]
[319414394,1710724242865,-500.0,0.0001863,2]
[319414395,1710724242874,-500.0,0.0001863,2]
[319414396,1710724242883,-500.0,0.0001863,2]
[319414397,1710724242893,-500.0,0.0001863,2]
[319414398,1710724242902,-500.0,0.0001863,2]
[319414399,1710724242911,-500.0,0.0001863,2]
[319414400,1710724242921,-500.0,0.0001863,2]
[319414401,1710724242930,-500.0,0.0001863,2]
[319414402,1710724242939,-215.25931888,0.0001863,2]
[319414403,1710724242949,-500.0,0.0001863,2]
[319414404,1710724242958,-500.0,0.0001863,2]
[319414405,1710724242968,-500.0,0.0001863,2]
[319414407,1710724242976,-500.0,0.0001863,2]
[319414408,1710724242985,-500.0,0.0001863,2]
[319414409,1710724242995,-500.0,0.0001863,2]
[319414410,1710724243004,-294.20740647,0.0001863,2]
[319414411,1710724243013,-500.0,0.0001863,2]
[319414412,1710724243023,-500.0,0.0001863,2]
[319414413,1710724243032,-500.0,0.0001863,2]
[319414414,1710724243041,-500.0,0.0001863,2]
[319414415,1710724243051,-500.0,0.0001863,2]
[319414416,1710724243061,-500.0,0.0001863,2]
[319414417,1710724243071,-500.0,0.0001863,2]
[319414418,1710724243080,-500.0,0.0001863,2]
[319414419,1710724243090,-500.0,0.0001863,2]
[319414420,1710724243102,-500.0,0.0001863,2]
[319414421,1710724243112,-500.0,0.0001863,2]
[319414422,1710724243122,-500.0,0.0001863,2]
[319414423,1710724243131,-500.0,0.0001863,2]
[319414424,1710724243141,-500.0,0.0001863,2]
[319414425,1710724243151,-500.0,0.0001863,2]
[319414426,1710724243162,-500.0,0.0001863,2]
[319414427,1710724243171,-500.0,0.0001863,2]
[319414428,1710724243181,-500.0,0.0001863,2]
[319414429,1710724243191,-500.0,0.0001863,2]
[319414430,1710724243201,-500.0,0.0001863,2]
[319414431,1710724243214,-548.25007969,0.0001863,2]
[319414432,1710724243224,-620.56995441,0.0001863,2]
[319414433,1710724243233,-500.0,0.0001863,2]
[319414434,1710724243243,-500.0,0.0001863,2]
[319414435,1710724243254,-500.0,0.0001863,2]
[319414436,1710724243263,-500.0,0.0001863,2]
[319414437,1710724243273,-500.0,0.0001863,2]
[319414438,1710724243284,-500.0,0.0001863,2]
[319414439,1710724243294,-500.0,0.0001863,2]
[319414440,1710724243305,-500.0,0.0001863,2]
[319414441,1710724243314,-500.0,0.0001863,2]
[319414442,1710724243324,-500.0,0.0001863,2]
[319414443,1710724243333,-500.0,0.0001863,2]
[319414444,1710724243344,-1312.69,0.0001863,2]
[319414445,1710724243356,-1312.69,0.0001863,2]
[319414446,1710724243365,-500.0,0.0001863,2]
[319414447,1710724243374,-1312.69,0.0001863,2]
[319414448,1710724243384,-1312.69,0.0001863,2]
[319414449,1710724243393,-1312.69,0.0001863,2]
[319414450,1710724243403,-1312.69,0.0001863,2]
[319414451,1710724243413,-1312.69,0.0001863,2]
[319414452,1710724243423,-1312.69,0.0001863,2]
[319414453,1710724243432,-1312.69,0.0001863,2]
[319414454,1710724243442,-500.0,0.0001863,2]
[319414455,1710724243451,-1312.69,0.0001863,2]
[319414456,1710724243461,-1312.69,0.0001863,2]
[319414457,1710724243471,-1312.69,0.0001863,2]
[319414458,1710724243480,-1312.69,0.0001863,2]
[319414459,1710724243490,-1312.69,0.0001863,2]
[319414460,1710724243499,-500.0,0.0001863,2]
[319414461,1710724243508,-1312.69,0.0001863,2]
[319414462,1710724243518,-1312.69,0.0001863,2]
[319414463,1710724243527,-500.0,0.0001863,2]
[319414464,1710724243536,-1312.69,0.0001863,2]
[319414465,1710724243545,-1312.69,0.0001863,2]
[319414466,1710724243554,-500.0,0.0001863,2]
[319414467,1710724243563,-1312.69,0.0001863,2]
[319414468,1710724243572,-1312.69,0.0001863,2]
[319414469,1710724243581,-1312.69,0.0001863,2]
[319414470,1710724243590,-500.0,0.0001863,2]
[319414471,1710724243602,-1312.69,0.0001863,2]
[319414472,1710724243611,-500.0,0.0001863,2]
[319414473,1710724243621,-1312.69,0.0001863,2]
[319414474,1710724243630,-1312.91,0.0001863,2]
[319414475,1710724243639,-500.0,0.0001863,2]
[319414476,1710724243648,-500.0,0.0001863,2]
[319414477,1710724243657,-500.0,0.0001863,2]
[319414478,1710724243666,-500.0,0.0001863,2]
[319414479,1710724243675,-500.0,0.0001863,2]
[319414480,1710724243684,-500.0,0.0001863,2]
[319414481,1710724243692,-500.0,0.0001863,2]
[319414482,1710724243701,-497.66304805,0.0001863,2]
[319414483,1710724243710,-500.0,0.0001863,2]
[319414484,1710724243719,-500.0,0.0001863,2]
[319414485,1710724243728,-500.0,0.0001863,2]
[319414486,1710724243737,-500.0,0.0001863,2]
[319414487,1710724243747,-500.0,0.0001863,2]
[319414488,1710724243755,-500.0,0.0001863,2]
[319414489,1710724243765,-500.0,0.0001863,2]
[319414490,1710724243774,-191.01871035,0.0001863,2]
[319414491,1710724243783,-500.0,0.0001863,2]
[319414492,1710724243792,-4082.37,0.0001863,2]
[319414493,1710724243801,-4082.37,0.0001863,2]
[319414494,1710724243810,-4082.37,0.0001863,2]
[319414495,1710724243818,-4082.37,0.0001863,2]
[319414496,1710724243828,-4082.37,0.0001863,2]
[319414497,1710724243836,-1901.04,0.0001863,2]
[319414498,1710724243845,-4082.37,0.0001863,2]
[319414499,1710724243856,-1901.04,0.0001863,2]
[319414500,1710724243865,-4082.37,0.0001863,2]
[319414501,1710724243874,-335.32580587,0.0001863,2]
[319414502,1710724243883,-1901.04,0.0001863,2]
[319414503,1710724243893,-4082.37,0.0001863,2]
[319414504,1710724243902,-4082.37,0.0001863,2]
[319414505,1710724243912,-1901.04,0.0001863,2]
[319414506,1710724243921,-1901.04,0.0001863,2]
[319414507,1710724243930,-4082.37,0.0001863,2]
[319414508,1710724243940,-1901.04,0.0001863,2]
[319414509,1710724243948,-4082.37,0.0001863,2]
[319414510,1710724243957,-4082.37,0.0001863,2]